bitfinex/quotes_BTCUSD_20250328
["timestamp","ask_amount","ask_price","bid_price","bid_amount"]
[1743188566207,0.81333094,83955.0,83954.0,0.0003374]
[1743188569120,0.83201516,83955.0,83954.0,0.0003374]
[1743188569504,0.71775752,83955.0,83954.0,0.0003374]
[1743188569898,0.6990733,83955.0,83954.0,0.0003374]
[1743188570098,0.5652333,83955.0,83954.0,0.0003374]
[1743188570331,0.6990733,83955.0,83954.0,0.0003374]
[1743188573022,0.71775749,83955.0,83954.0,0.0003374]
[1743188573191,0.83201513,83955.0,83954.0,0.0003374]
[1743188575738,0.81333094,83955.0,83954.0,0.0003374]
[1743188577848,0.92758858,83955.0,83954.0,0.0003374]
[1743188578102,1.34498838,83955.0,83954.0,0.0003374]
[1743188580688,1.34498838,83955.0,83954.0,4e-07]
[1743188581016,1.42648838,83955.0,83954.0,4e-07]
[1743188581229,1.43561495,83955.0,83954.0,4e-07]
[1743188582451,0.580145,83951.0,83950.0,4e-07]
[1743188582609,1.20126715,83951.0,83950.0,4e-07]
[1743188583899,1.20126715,83951.0,83950.0,0.0010004]
[1743188584336,1.20126715,83951.0,83950.0,0.0020004]
[1743188584926,2.38224503,83951.0,83950.0,0.0020004]
[1743188585150,2.4828786,83951.0,83950.0,0.0020004]
[1743188592149,2.4828786,83951.0,83950.0,0.0011693]
[1743188592347,2.50156575,83951.0,83950.0,0.0011693]
[1743188592622,2.50156575,83951.0,83950.0,0.0001693]
[1743188594858,1.32058787,83951.0,83950.0,0.0001693]
[1743188595059,1.23908787,83951.0,83950.0,0.0001693]
[1743188595258,1.35428072,83951.0,83950.0,0.0001693]
[1743188595459,1.35928072,83951.0,83950.0,3e-07]
[1743188599765,1.37796767,83951.0,83950.0,3e-07]
[1743188599886,1.35928072,83951.0,83950.0,3e-07]
[1743188600289,1.35428072,83951.0,83950.0,3e-07]
[1743188601165,1.19540072,83951.0,83950.0,3e-07]
[1743188601381,1.22864715,83951.0,83950.0,3e-07]
[1743188601996,1.09476715,83951.0,83950.0,3e-07]
[1743188602151,1.11438951,83951.0,83950.0,3e-07]
[1743188602554,1.13307515,83951.0,83950.0,3e-07]
[1743188602782,1.18410618,83951.0,83950.0,3e-07]
[1743188603399,1.18410618,83951.0,83942.0,0.0785376]
[1743188603400,0.011912,83943.0,83942.0,0.0785376]
[1743188603578,0.550168,83943.0,83942.0,0.0785376]
[1743188603778,0.56304614,83943.0,83942.0,0.0785376]
[1743188604747,0.56304614,83943.0,83942.0,0.0003376]
[1743188605721,0.56304614,83943.0,83942.0,0.0043376]
[1743188605925,0.57730007,83943.0,83942.0,0.0043376]
[1743188607795,0.56304614,83943.0,83942.0,0.0043376]
[1743188609285,0.26304614,83943.0,83942.0,0.0043376]
[1743188609901,0.01287814,83943.0,83942.0,0.2425966]
[1743188610227,0.01287814,83943.0,83942.0,0.3371086]
[1743188610431,0.011912,83947.0,83942.0,0.1324376]
[1743188610582,0.238253,83945.0,83942.0,0.1324376]
[1743188610781,0.238254,83944.0,83942.0,0.1324376]
[1743188610981,0.238256,83943.0,83942.0,0.1324376]
[1743188611226,0.26307556,83943.0,83942.0,0.1324376]
[1743188611876,0.25116356,83943.0,83942.0,0.1284376]
[1743188612139,0.01290756,83943.0,83942.0,0.3786086]
[1743188612306,0.01290756,83943.0,83942.0,0.1314376]
[1743188612510,0.011912,83945.0,83942.0,0.3696956]
[1743188612710,0.01290756,83943.0,83942.0,0.3696956]
[1743188612967,0.238251,83945.0,83942.0,0.3696956]
[1743188613162,0.238245,83948.0,83943.0,0.238256]
[1743188613392,0.23825,83946.0,83943.0,0.250168]
[1743188613523,0.238253,83945.0,83942.0,0.3716956]
[1743188613733,0.238255,83944.0,83942.0,0.3696966]
[1743188613954,0.011912,83948.0,83942.0,0.3696966]
[1743188613955,0.0049997,83950.0,83948.0,0.0785]
[1743188614154,0.0049997,83950.0,83949.0,0.29985]
[1743188615304,0.2432367,83950.0,83949.0,0.0497]
[1743188616207,0.2551477,83950.0,83949.0,0.0497]
[1743188616403,0.36482172,83950.0,83949.0,0.0497]
[1743188617524,0.2551477,83950.0,83949.0,0.0497]
[1743188617711,0.25016,83946.0,83945.0,0.5674]
[1743188617871,0.55016,83946.0,83945.0,0.5674]
[1743188618756,0.55016,83946.0,83945.0,0.5694]
[1743188618954,0.55016,83946.0,83945.0,0.5654003]
[1743188619396,0.55016,83946.0,83945.0,0.6435003]
[1743188619397,0.538248,83946.0,83945.0,0.6435003]
[1743188619636,0.3,83946.0,83945.0,0.6435003]
[1743188620506,0.55016,83946.0,83945.0,0.6435003]
[1743188620729,0.25016,83946.0,83945.0,0.6435003]
[1743188621350,0.238248,83946.0,83945.0,0.6435003]
[1743188621863,0.25016,83946.0,83945.0,0.6435003]
[1743188622925,0.26884254,83947.0,83945.0,0.6435003]
[1743188623335,0.25016,83946.0,83945.0,0.6435003]
[1743188624151,0.25016,83946.0,83945.0,0.6415003]
[1743188624594,0.26884254,83947.0,83945.0,0.6425003]
[1743188624918,0.01868454,83947.0,83946.0,0.25016]
[1743188625434,0.0003378,83950.0,83949.0,0.238239]
[1743188625658,0.0003378,83950.0,83948.0,0.238241]
[1743188626043,0.0003378,83950.0,83949.0,0.25015]
[1743188626463,0.0003378,83950.0,83949.0,0.238239]
[1743188626978,0.0003378,83950.0,83948.0,0.250153]
[1743188627178,0.01333676,83950.0,83949.0,0.238239]
[1743188627384,0.01333676,83950.0,83948.0,0.238241]
[1743188627586,0.01333676,83950.0,83949.0,0.238239]
[1743188627986,0.01333676,83950.0,83948.0,0.241241]
[1743188628174,0.238239,83949.0,83948.0,0.003]
[1743188628563,0.238244,83948.0,83946.0,0.0504]
[1743188628913,0.238245,83947.0,83946.0,0.0504]
[1743188629123,0.25124396,83947.0,83946.0,0.0504]
[1743188629337,0.29550175,83947.0,83946.0,0.0494]
[1743188629538,0.238248,83946.0,83945.0,0.5624003]
[1743188629744,0.25016,83946.0,83945.0,0.5624003]
[1743188629948,0.26320053,83946.0,83945.0,0.5624003]
[1743188631269,0.01304053,83946.0,83945.0,0.8125633]
[1743188631479,0.23824,83949.0,83947.0,0.238245]
[1743188631684,0.25127065,83948.0,83945.0,0.8205633]
[1743188631881,0.01302665,83948.0,83947.0,0.238245]
[1743188632106,0.2385748,83950.0,83947.0,0.238245]
[1743188632305,0.01302665,83948.0,83947.0,0.238245]
[1743188632528,0.23824,83949.0,83947.0,0.238245]
[1743188632682,0.01302665,83948.0,83947.0,0.238245]
[1743188633466,0.2385748,83950.0,83947.0,0.238245]
[1743188633664,0.25126765,83949.0,83946.0,0.238247]
[1743188633970,0.01302665,83949.0,83947.0,0.238242]
[1743188634373,0.238242,83948.0,83945.0,0.8036513]
[1743188634627,0.238242,83948.0,83947.0,0.006]
[1743188634797,0.23824,83949.0,83947.0,0.241245]
[1743188635130,0.25126865,83948.0,83947.0,0.003]
[1743188635509,0.32987457,83948.0,83947.0,0.003]
[1743188635674,0.34178657,83948.0,83947.0,0.006]
[1743188636444,0.26318065,83948.0,83947.0,0.006]
[1743188636736,0.01302665,83948.0,83947.0,0.006]
[1743188636941,0.01302665,83948.0,83947.0,0.256157]
[1743188637147,0.0003378,83950.0,83948.0,0.238242]
[1743188637340,0.0003378,83950.0,83949.0,0.25015]
[1743188637904,0.0003378,83950.0,83949.0,0.32665]
[1743188638363,0.0003378,83950.0,83949.0,0.0765]
[1743188638708,0.0003378,83950.0,83949.0,0.32965]
[1743188639132,0.0003378,83950.0,83949.0,0.320739]
[1743188639351,0.0003378,83950.0,83949.0,0.33265]
[1743188640939,0.0003378,83950.0,83949.0,0.49550764]
[1743188641528,0.0003378,83950.0,83949.0,0.51004849]
[1743188641910,0.0003378,83950.0,83949.0,1.21004849]
[1743188642434,0.0003378,83950.0,83949.0,1.20404849]
[1743188642597,0.0003378,83950.0,83949.0,1.20804849]
[1743188643808,0.0003378,83950.0,83949.0,1.21304849]
[1743188644870,0.0003378,83950.0,83949.0,0.94835764]
[1743188645043,0.2385748,83950.0,83949.0,0.709]
[1743188645245,0.0003378,83950.0,83949.0,0.709]
[1743188645421,0.25166289,83950.0,83949.0,0.009]
[1743188645626,0.2385748,83950.0,83949.0,0.009]
[1743188645892,0.01344342,83950.0,83949.0,0.247239]
[1743188646231,0.01344342,83950.0,83949.0,0.37340764]
[1743188646569,0.0003378,83950.0,83949.0,0.38794849]
[1743188647294,0.0003378,83950.0,83949.0,0.247239]
[1743188647497,0.2385748,83950.0,83949.0,0.004]
[1743188647709,0.26358009,83950.0,83949.0,0.004]
[1743188650364,0.35291777,83950.0,83949.0,0.004]
[1743188650770,0.34122979,83950.0,83949.0,0.004]
[1743188652991,0.39738009,83950.0,83949.0,0.004]
[1743188657362,0.26358009,83950.0,83949.0,0.004]
[1743188658053,0.01343209,83950.0,83949.0,0.242239]
[1743188658277,0.01343209,83950.0,83949.0,0.004]
[1743188658690,0.26358009,83950.0,83949.0,0.004]
[1743188658984,0.26354801,83950.0,83949.0,0.004]
[1743188659398,0.26354801,83950.0,83949.0,0.57132]
[1743188662225,0.26260101,83950.0,83949.0,0.57132]
[1743188662634,0.01306221,83950.0,83949.0,0.809559]
[1743188663555,0.01306221,83950.0,83949.0,0.93572764]
[1743188663766,0.01306221,83950.0,83949.0,1.01562764]
[1743188663915,0.0003378,83951.0,83950.0,0.250148]
[1743188664295,0.0003378,83951.0,83950.0,0.36440564]
[1743188664465,0.0003378,83951.0,83950.0,0.35249464]
[1743188664671,0.0003378,83951.0,83950.0,0.238237]
[1743188664879,0.01340519,83951.0,83950.0,0.250148]
[1743188665079,0.0003378,83951.0,83950.0,0.250148]
[1743188665439,0.0003378,83951.0,83950.0,0.254148]
[1743188666269,0.0003378,83951.0,83950.0,0.258148]
[1743188668981,0.0134322,83951.0,83950.0,0.258148]
[1743188669184,0.0003378,83951.0,83950.0,0.258148]
[1743188669431,0.0134322,83951.0,83950.0,0.258148]
[1743188669601,0.0003378,83951.0,83950.0,0.258148]
[1743188673257,0.0003378,83951.0,83950.0,0.37240564]
[1743188673442,0.0003378,83951.0,83950.0,0.44880564]
[1743188674663,0.0003378,83951.0,83950.0,1.14880564]
[1743188675520,0.0003378,83951.0,83950.0,1.16334649]
[1743188675922,0.0003378,83951.0,83950.0,0.46334649]
[1743188677013,0.01347204,83951.0,83950.0,0.46334649]
[1743188677218,0.0003378,83951.0,83950.0,0.46334649]
[1743188677556,0.0003378,83951.0,83950.0,0.12225764]
[1743188678078,0.01348298,83951.0,83950.0,0.246237]
[1743188678201,0.0003378,83951.0,83950.0,0.258148]
[1743188678625,0.0003378,83951.0,83950.0,0.2583169]
[1743188679224,0.0134669,83951.0,83950.0,0.2583169]
[1743188682924,0.0134669,83951.0,83950.0,0.2464059]
[1743188683085,0.0134669,83951.0,83950.0,0.2583169]
[1743188683470,0.0003378,83951.0,83950.0,0.2583169]
[1743188684347,0.0003378,83951.0,83950.0,0.38711539]
[1743188685117,0.01182237,83951.0,83950.0,0.38711539]
[1743188686018,0.01182237,83951.0,83950.0,0.37257454]
[1743188686269,0.25005637,83951.0,83950.0,0.0081689]
[1743188686466,0.26196737,83951.0,83950.0,0.0081689]
[1743188690339,0.71792122,83951.0,83950.0,0.0081689]
[1743188690529,0.83217886,83951.0,83950.0,0.0081689]
[1743188691032,0.84118126,83951.0,83950.0,0.0081689]
[1743188691430,0.84118126,83951.0,83950.0,0.0041689]
[1743188692299,0.84118126,83951.0,83950.0,0.0001689]
[1743188692649,0.555148,83950.0,83949.0,8e-07]
[1743188692861,0.91456328,83950.0,83949.0,8e-07]
[1743188693069,0.92582942,83950.0,83949.0,8e-07]
[1743188694087,0.92582942,83950.0,83949.0,0.0020008]
[1743188694289,0.94451753,83950.0,83949.0,0.0020008]
[1743188694669,0.94451753,83950.0,83949.0,0.0040008]
[1743188695098,0.94451753,83950.0,83949.0,0.0020008]
[1743188695464,0.92582942,83950.0,83949.0,8e-07]
[1743188699848,0.55516,83946.0,83945.0,7e-07]
[1743188700053,0.55516,83946.0,83937.0,3e-07]
[1743188700054,0.397413,83938.0,83937.0,3e-07]
[1743188700276,0.397413,83938.0,83926.0,0.56728]
[1743188700277,0.630717,83927.0,83926.0,0.56728]
[1743188700477,0.74497464,83927.0,83926.0,0.56728]
[1743188700679,0.250231,83922.0,83903.0,0.238369]
[1743188700906,0.384031,83922.0,83912.0,0.5674]
[1743188701238,0.39529714,83922.0,83912.0,0.5674]
[1743188701595,0.3953446,83922.0,83912.0,0.5674]
[1743188702410,0.3953446,83922.0,83921.0,0.0023378]
[1743188703069,0.50474343,83922.0,83921.0,0.0053378]
[1743188703198,0.52343479,83922.0,83921.0,0.0053378]
[1743188703804,0.83547042,83922.0,83921.0,0.0053378]
[1743188704528,0.81677906,83922.0,83921.0,0.0053378]
[1743188704906,0.3113136,83922.0,83921.0,0.0053378]
[1743188705110,0.5496296,83922.0,83921.0,0.0053378]
[1743188705613,0.0113136,83922.0,83921.0,0.0053378]
[1743188706034,0.0113136,83922.0,83921.0,0.2436568]
[1743188706462,0.0113136,83922.0,83921.0,0.2555718]
[1743188706661,0.0113136,83922.0,83921.0,0.44492944]
[1743188706866,5.8e-07,83922.0,83921.0,0.81736527]
[1743188707062,5.8e-07,83922.0,83921.0,1.5235787]
[1743188707437,5.8e-07,83922.0,83921.0,1.5205787]
[1743188707642,0.10634542,83960.0,83950.0,0.250148]
[1743188707846,0.00040122,83951.0,83950.0,0.817628]
[1743188708050,0.00040122,83951.0,83950.0,0.56748]
[1743188708577,0.24706644,83951.0,83950.0,0.56748]
[1743188708729,0.25054622,83951.0,83950.0,0.56748]
[1743188708931,0.25897744,83951.0,83950.0,0.56748]
[1743188709132,0.25897744,83951.0,83950.0,0.57048]
[1743188709537,0.35994966,83951.0,83950.0,0.57048]
[1743188709743,0.35994966,83951.0,83950.0,0.57348]
[1743188710145,0.25897744,83951.0,83950.0,0.57348]
[1743188712832,0.55897744,83951.0,83950.0,0.57348]
[1743188713018,0.75543508,83951.0,83950.0,0.00574]
[1743188713224,0.250231,83922.0,83921.0,0.70655123]
[1743188713460,0.238316,83922.0,83921.0,0.5677378]
[1743188713592,0.24679817,83922.0,83921.0,0.5677378]
[1743188714423,0.00848217,83922.0,83921.0,0.5677378]
[1743188714630,0.00848217,83922.0,83921.0,0.92075852]
[1743188714974,0.238296,83930.0,83921.0,0.92075852]
[1743188714975,0.238299,83929.0,83922.0,0.238313]
[1743188715129,0.238299,83928.0,83923.0,0.238311]
[1743188715327,0.238299,83928.0,83922.0,0.01454085]
[1743188715328,0.00845636,83928.0,83927.0,0.2383]
[1743188715536,0.24675636,83928.0,83927.0,0.11425764]
[1743188715731,0.2383,83928.0,83927.0,0.11425764]
[1743188715935,0.2467545,83928.0,83927.0,0.11425764]
[1743188716772,0.2467545,83928.0,83927.0,0.11325764]
[1743188717558,0.0104545,83928.0,83927.0,0.35955964]
[1743188717718,0.0104545,83928.0,83927.0,0.37147464]
[1743188717917,0.002,83928.0,83927.0,0.12125764]
[1743188718142,0.240299,83928.0,83927.0,0.12125764]
[1743188718517,0.01051444,83928.0,83927.0,0.12125764]
[1743188718923,0.002,83928.0,83927.0,0.12125764]
[1743188720694,0.01051187,83928.0,83927.0,0.12125764]
[1743188720862,0.002,83928.0,83927.0,0.12125764]
[1743188721069,0.01051187,83928.0,83927.0,0.35955964]
[1743188721271,0.002,83928.0,83927.0,0.35955964]
[1743188721434,0.01051187,83928.0,83927.0,0.35955964]
[1743188721632,0.002,83928.0,83927.0,0.35955964]
[1743188721833,0.01051187,83928.0,83927.0,0.12125764]
[1743188722036,0.002,83928.0,83927.0,0.12125764]
[1743188722238,0.01051187,83928.0,83927.0,0.12125764]
[1743188722598,0.002,83928.0,83927.0,0.12125764]
[1743188722737,0.01051187,83928.0,83927.0,0.12125764]
[1743188723254,0.01051187,83928.0,83927.0,0.1436556]
[1743188723453,0.01051187,83928.0,83927.0,0.3819576]
[1743188723662,0.01051187,83928.0,83927.0,0.3938726]
[1743188723884,0.002,83928.0,83927.0,0.3938726]
[1743188724685,0.002,83928.0,83927.0,0.3940414]
[1743188724883,0.0023376,83928.0,83927.0,0.4009998]
[1743188725285,0.0023376,83928.0,83927.0,0.12838484]
[1743188725670,0.01085612,83928.0,83927.0,0.12142644]
[1743188725876,0.0023376,83928.0,83927.0,0.12142644]
[1743188726077,0.0108556,83928.0,83927.0,0.12142644]
[1743188726281,0.0023376,83928.0,83927.0,0.12142644]
[1743188726490,0.0108556,83928.0,83927.0,0.12838523]
[1743188726690,0.0023376,83928.0,83927.0,0.15078199]
[1743188727347,0.0108556,83928.0,83927.0,0.15078199]
[1743188727627,0.0108556,83928.0,83927.0,0.03752435]
[1743188727829,0.0108556,83928.0,83927.0,0.27582635]
[1743188728179,0.0108556,83928.0,83927.0,0.03752435]
[1743188728375,0.0108556,83928.0,83927.0,0.03056556]
[1743188728606,0.0023376,83928.0,83927.0,0.26886756]
[1743188728860,0.0108556,83928.0,83927.0,0.26886756]
[1743188729142,0.0023376,83928.0,83927.0,0.26886756]
[1743188729394,0.0108556,83928.0,83927.0,0.26886756]
[1743188729544,0.0023376,83928.0,83927.0,0.26886756]
[1743188729745,0.0108556,83928.0,83927.0,0.26886756]
[1743188729947,0.0023376,83928.0,83927.0,0.26886756]
[1743188730145,0.0023376,83928.0,83927.0,0.03056556]
[1743188730343,0.2491546,83928.0,83927.0,0.03056556]
[1743188730546,0.2406366,83928.0,83927.0,0.03056556]
[1743188730725,0.0108556,83928.0,83927.0,0.03056556]
[1743188731070,0.0108556,83928.0,83927.0,0.0081688]
[1743188731281,0.0108556,83928.0,83927.0,0.5755688]
[1743188731989,0.33721566,83928.0,83927.0,0.5755688]
[1743188732140,0.3396686,83928.0,83927.0,0.59795683]
[1743188732341,0.75392624,83928.0,83927.0,0.03055683]
[1743188732555,0.79016811,83928.0,83927.0,8.3e-07]
[1743188732810,0.90442575,83928.0,83927.0,8.3e-07]
[1743188733385,0.550231,83922.0,83921.0,0.00078188]
[1743188733564,0.7547526,83922.0,83921.0,0.00078188]
[1743188733973,0.250294,83901.0,83900.0,0.00020069]
[1743188734181,0.463754,83901.0,83900.0,0.00033381]
[1743188734380,0.5125129,83901.0,83900.0,0.00033381]
[1743188734580,0.39234857,83901.0,83900.0,0.00033381]
[1743188735331,0.39234857,83901.0,83900.0,0.00533381]
[1743188736622,0.39334857,83901.0,83900.0,0.00633381]
[1743188736825,0.25958857,83901.0,83900.0,0.00633381]
[1743188736996,0.00929457,83901.0,83900.0,0.24471281]
[1743188737491,0.00929457,83901.0,83900.0,0.00633381]
[1743188738099,0.00929457,83901.0,83900.0,0.25663081]
[1743188738303,0.001,83901.0,83900.0,0.25663081]
[1743188738512,0.001,83901.0,83900.0,0.37088845]
[1743188739203,0.001,83901.0,83900.0,0.3854293]
[1743188740254,0.001,83901.0,83900.0,0.3916492]
[1743188740456,0.001,83901.0,83900.0,1.0916492]
[1743188742939,0.001,83901.0,83900.0,0.83872635]
[1743188743107,0.001,83901.0,83900.0,0.82059145]
[1743188743311,0.001,83901.0,83900.0,0.83250945]
[1743188743516,0.001,83901.0,83900.0,1.07088845]
[1743188744107,0.001,83901.0,83900.0,0.37088845]
[1743188747097,0.001,83901.0,83900.0,0.3854293]
[1743188747706,0.001,83901.0,83900.0,0.4679293]
[1743188749580,0.001,83901.0,83900.0,1.22301797]
[1743188750146,0.0003376,83921.0,83920.0,0.250238]
[1743188750549,0.00867349,83921.0,83920.0,0.249238]
[1743188750724,0.0003376,83921.0,83920.0,0.249238]
[1743188750930,0.0003376,83921.0,83920.0,0.248238]
[1743188751175,0.00867349,83921.0,83920.0,0.248238]
[1743188751378,0.0003376,83921.0,83920.0,0.248238]
[1743188751674,0.00867349,83921.0,83920.0,0.248238]
[1743188752066,0.00867349,83921.0,83920.0,0.240322]
[1743188752067,0.0003376,83921.0,83920.0,0.240322]
[1743188752319,0.2386566,83921.0,83920.0,0.002]
[1743188752512,0.27801176,83921.0,83920.0,0.002]
[1743188752661,0.28634765,83921.0,83920.0,0.003]
[1743188753090,0.00867349,83921.0,83920.0,0.003]
[1743188753493,0.00867349,83921.0,83920.0,0.241322]
[1743188754239,0.00867349,83921.0,83920.0,0.003]
[1743188754438,0.24699249,83921.0,83920.0,0.003]
[1743188754661,0.25890749,83921.0,83920.0,0.003]
[1743188754775,0.24699249,83921.0,83920.0,0.003]
[1743188755945,0.25890749,83921.0,83920.0,0.003]
[1743188758139,0.36105754,83921.0,83920.0,0.003]
[1743188758597,0.34914254,83921.0,83920.0,0.003]
[1743188759099,0.00867349,83921.0,83920.0,0.241322]
[1743188760452,0.24183175,83921.0,83920.0,0.003]
[1743188760652,0.00774857,83921.0,83920.0,0.241322]
[1743188760851,0.238316,83922.0,83920.0,0.003]
[1743188761033,0.00774857,83921.0,83920.0,0.003]
[1743188761659,0.00808617,83921.0,83920.0,0.001]
[1743188761993,0.00808617,83921.0,83920.0,0.002]
[1743188762171,0.24640517,83921.0,83920.0,0.002]
[1743188762550,0.25832017,83921.0,83920.0,0.001]
[1743188762714,0.25832017,83921.0,83920.0,0.003]
[1743188764999,0.33658159,83921.0,83920.0,0.003]
[1743188765155,0.41668159,83921.0,83920.0,0.003]
[1743188765355,0.33842017,83921.0,83920.0,0.003]
[1743188765763,0.63842017,83921.0,83920.0,0.003]
[1743188766115,0.68592017,83921.0,83920.0,0.003]
[1743188766274,0.70461215,83921.0,83920.0,0.003]
[1743188766476,0.81886979,83921.0,83920.0,0.003]
[1743188767501,0.93312743,83921.0,83920.0,0.002]
[1743188767714,0.91443545,83921.0,83920.0,0.002]
[1743188768048,0.91943545,83921.0,83920.0,0.002]
[1743188768168,0.250294,83901.0,83900.0,0.00050261]
[1743188768372,0.28545325,83901.0,83900.0,0.00050261]
[1743188768656,0.25804035,83901.0,83900.0,0.00050261]
[1743188769131,0.00774635,83901.0,83900.0,0.00050261]
[1743188769475,0.238373,83902.0,83900.0,0.00550261]
[1743188769670,0.00769667,83901.0,83900.0,0.00950261]
[1743188770206,0.238373,83903.0,83900.0,0.00950261]
[1743188770406,0.00769667,83902.0,83901.0,0.250294]
[1743188770612,0.25705574,83906.0,83903.0,0.23837]
[1743188770798,0.24606267,83905.0,83901.0,0.250294]
[1743188770998,0.24606267,83905.0,83902.0,0.238372]
[1743188771253,0.24606167,83905.0,83902.0,0.238372]
[1743188772024,0.238368,83904.0,83901.0,0.250294]
[1743188772461,0.00769667,83903.0,83902.0,0.004]
[1743188772888,0.00769667,83903.0,83901.0,0.250294]
[1743188773112,0.00769667,83903.0,83901.0,0.2504628]
[1743188773646,0.00769667,83903.0,83902.0,0.238373]
[1743188773850,0.00769667,83903.0,83902.0,0.250291]
[1743188773977,0.01869374,83906.0,83905.0,0.238364]
[1743188774178,0.02639041,83906.0,83904.0,0.238366]
[1743188774829,0.02639041,83906.0,83903.0,0.23837]
[1743188775024,0.26475241,83906.0,83903.0,0.23837]
[1743188775465,0.02639041,83906.0,83905.0,0.238364]
[1743188776657,0.02639041,83906.0,83904.0,0.238366]
[1743188776869,0.02639041,83906.0,83905.0,0.241364]
[1743188777252,0.00769667,83906.0,83905.0,0.241364]
[1743188777454,0.238359,83907.0,83905.0,0.003]
[1743188777653,0.00769667,83906.0,83905.0,0.241362]
[1743188778084,0.238358,83908.0,83905.0,0.241362]
[1743188778283,0.24605767,83906.0,83905.0,0.003]
[1743188778615,0.25027,83909.0,83906.0,0.238359]
[1743188778928,0.238356,83908.0,83905.0,0.241363]
[1743188779118,0.238353,83909.0,83905.0,0.257281]
[1743188779295,0.238353,83909.0,83906.0,0.238359]
[1743188779510,0.005,83934.0,83906.0,0.238359]
[1743188779511,0.0003376,83921.0,83916.0,0.011916]
[1743188779712,0.0003376,83921.0,83920.0,0.250238]
[1743188779910,0.0003376,83921.0,83920.0,0.37903649]
[1743188780072,0.0003376,83921.0,83920.0,0.42563649]
[1743188780273,0.0003376,83921.0,83920.0,0.43733297]
[1743188781180,0.0003376,83921.0,83920.0,1.13733297]
[1743188782057,0.0003376,83921.0,83920.0,1.13933297]
[1743188782238,0.0003376,83921.0,83920.0,1.13733297]
[1743188782434,0.0003376,83921.0,83920.0,1.14033297]
[1743188782636,0.0003376,83921.0,83920.0,1.13163649]
[1743188782901,0.2386566,83921.0,83920.0,0.706]
[1743188783104,0.2505716,83921.0,83920.0,0.706]
[1743188783942,0.2505716,83921.0,83920.0,0.006]
[1743188784140,0.66482924,83921.0,83920.0,0.006]
[1743188784944,0.68352161,83921.0,83920.0,0.006]
[1743188785146,0.68352161,83921.0,83899.0,0.56752]
[1743188785147,0.250291,83902.0,83899.0,0.56752]
[1743188785557,0.250291,83902.0,83886.0,0.0003378]
[1743188785756,0.250291,83902.0,83890.0,0.56752]
[1743188786172,0.245291,83902.0,83901.0,0.0041688]
[1743188786387,0.245291,83902.0,83901.0,0.0091688]
[1743188788875,0.238365,83905.0,83901.0,0.0091688]
[1743188789073,0.011918,83902.0,83901.0,0.0091688]
[1743188789248,0.238372,83903.0,83901.0,0.0091688]
[1743188789513,0.011918,83902.0,83901.0,0.0091688]
[1743188789679,0.011918,83902.0,83901.0,0.0041688]
[1743188790289,0.250291,83902.0,83901.0,0.0071688]
[1743188791456,0.31168751,83902.0,83901.0,0.0071688]
[1743188792003,0.31837403,83902.0,83901.0,0.0071688]
[1743188792220,0.31837403,83902.0,83901.0,0.0041688]
[1743188792616,0.31837403,83902.0,83901.0,0.0081688]
[1743188794387,0.25697752,83902.0,83901.0,0.0081688]
[1743188794969,0.00668652,83902.0,83901.0,0.0081688]
[1743188795150,0.24505952,83902.0,83901.0,0.0081688]
[1743188795347,0.250291,83902.0,83901.0,0.0081688]
[1743188795557,0.25696524,83902.0,83901.0,0.0081688]
[1743188795976,0.00667424,83902.0,83901.0,0.0081688]
[1743188796235,0.00667424,83902.0,83901.0,0.37272044]
[1743188796576,0.25705698,83906.0,83902.0,0.238372]
[1743188796790,0.238368,83904.0,83902.0,0.11425764]
[1743188797002,0.01859292,83905.0,83902.0,0.11425764]
[1743188797242,0.00667492,83904.0,83902.0,0.35263064]
[1743188797470,0.238368,83904.0,83902.0,0.11425764]
[1743188797805,0.25705598,83906.0,83902.0,0.11425764]
[1743188798024,0.25705598,83906.0,83902.0,0.35263064]
[1743188798025,0.0003378,83905.0,83902.0,0.35263064]
[1743188798194,0.2387028,83905.0,83902.0,0.35263064]
[1743188798397,0.2387028,83905.0,83902.0,0.35562964]
[1743188798597,0.2387028,83905.0,83902.0,0.35862964]
[1743188799107,0.2387028,83905.0,83902.0,0.35262964]
[1743188799305,0.238368,83904.0,83902.0,0.11825764]
[1743188799725,0.0003378,83905.0,83903.0,0.23837]
[1743188799927,0.0003378,83905.0,83904.0,0.238367]
[1743188800240,0.0003378,83905.0,83903.0,0.23837]
[1743188800382,0.2387018,83905.0,83902.0,0.35962864]
[1743188800793,0.23837,83903.0,83902.0,0.12125764]
[1743188801226,0.250288,83903.0,83902.0,0.11725764]
[1743188801425,0.250288,83903.0,83902.0,0.11425764]
[1743188801583,0.250288,83903.0,83902.0,0.11825764]
[1743188802004,0.32779108,83903.0,83902.0,0.003]
[1743188802437,0.250288,83903.0,83902.0,0.007]
[1743188802802,0.250288,83903.0,83902.0,0.004]
[1743188803068,0.250288,83903.0,83902.0,0.008]
[1743188804232,0.384088,83903.0,83902.0,0.008]
[1743188804855,0.684088,83903.0,83902.0,0.008]
[1743188805045,0.92431569,83903.0,83902.0,0.008]
[1743188805580,0.93331387,83903.0,83902.0,0.008]
[1743188805779,0.93331387,83903.0,83902.0,0.004]
[1743188806186,0.93331387,83903.0,83902.0,0.006]
[1743188806368,0.93331387,83903.0,83902.0,0.002]
[1743188806924,0.96376173,83903.0,83902.0,0.002]
[1743188807670,0.96376173,83903.0,83902.0,0.004]
[1743188809126,0.84950409,83903.0,83902.0,0.004]
[1743188809738,0.86820156,83903.0,83902.0,0.004]
[1743188810947,0.86820156,83903.0,83902.0,0.0041689]
[1743188811165,0.86853936,83903.0,83902.0,0.0041689]
[1743188816184,0.75432172,83903.0,83902.0,0.0041689]
[1743188816658,0.77209055,83903.0,83902.0,0.0041689]
[1743188816875,0.88634819,83903.0,83902.0,0.0041689]
[1743188820330,0.86765072,83903.0,83902.0,0.0041689]
[1743188820931,0.86765072,83903.0,83886.0,0.0003378]
[1743188820932,0.550335,83887.0,83886.0,0.0003378]
[1743188821150,0.88063264,83887.0,83886.0,0.00047097]
[1743188821347,1.00145623,83887.0,83886.0,0.00047097]
[1743188821548,0.91925623,83887.0,83886.0,0.00047097]
[1743188821946,0.78541623,83887.0,83886.0,0.00047097]
[1743188822151,0.80499859,83887.0,83886.0,0.00047097]
[1743188822347,0.80599859,83887.0,83886.0,0.00047097]
[1743188823215,0.82669948,83887.0,83886.0,0.00047097]
[1743188823783,0.82569948,83887.0,83886.0,0.00047097]
[1743188823982,0.93995712,83887.0,83886.0,0.00047097]
[1743188824139,0.94195712,83887.0,83886.0,0.00047097]